fUST/lending_fUST_20240727
["ID","MTS","AMOUNT","RATE_DAILY","PERIOD"]
[333335817,1722060647149,-644.29826713,0.00013698,2]
[333335818,1722060647158,-500.0,0.00013698,2]
[333335819,1722060647168,-500.0,0.00013698,2]
[333335820,1722060647177,-507.25153227,0.00013698,2]
[333335821,1722060647189,-506.21356583,0.00013698,2]
[333335823,1722060647200,-500.0,0.00013698,2]
[333335825,1722060647210,-505.22080051,0.00013698,2]
[333335827,1722060647219,-180.43089525,0.00013698,2]
[333335829,1722060647229,-503.41575297,0.00013698,2]
[333335831,1722060647238,-501.42002588,0.00013698,2]
[333335833,1722060647248,-549.83112287,0.00013698,2]
[333335835,1722060647257,-506.58152275,0.00013698,2]
[333335837,1722060647267,-500.0,0.00013698,2]
[333335839,1722060647279,-500.0,0.00013698,2]
[333335841,1722060647289,-518.90629494,0.00013698,2]
[333335843,1722060647299,-500.0,0.00013698,2]
[333335845,1722060647308,-500.0,0.00013698,2]
[333335847,1722060647318,-502.43952104,0.00013698,2]
[333335849,1722060647327,-500.0,0.00013698,2]
[333335851,1722060647336,-525.78238354,0.00013698,2]
[333335853,1722060647345,-355.97088972,0.00013698,2]
[333335855,1722060647355,-500.0,0.00013698,2]
[333335857,1722060647364,-164.66294891,0.00013698,2]
[333336768,1722060677887,552.98256727,0.0001188,2]
[333336769,1722060677909,803.95416911,0.0001188,2]
[333336770,1722060677932,749.98341536,0.0001188,2]
[333336771,1722060687385,151.55658464,9.999e-05,2]
[333336772,1722060687406,35.81303287,9.999e-05,2]
[333336777,1722061557121,-200.0,9.514e-05,2]
[333336778,1722061557144,-200.0,9.61e-05,2]
[333336779,1722061557169,-163.066074,9.832e-05,2]
[333336780,1722061557195,-163.066074,9.863e-05,2]
[333336781,1722061557218,-163.066074,9.893e-05,2]
[333336782,1722061557240,-469.31215019,9.899e-05,2]
[333336783,1722061640250,-189.0691234,9.335e-05,2]
[333336784,1722061640271,-81.12698318,9.899e-05,2]
[333336789,1722061647235,-1001.24362039,9.899e-05,2]
[333336790,1722061647260,-200.0,9.9e-05,2]
[333336791,1722061647288,-163.066074,9.923e-05,2]
[333336792,1722061647312,-87.81485172,9.953e-05,2]
[333336800,1722061750206,-928.88859982,9.394e-05,2]
[333336801,1722061754106,-1808.82880978,9.394e-05,2]
[333336802,1722061754127,-200.0,9.4e-05,2]
[333336803,1722061754150,-75.25122228,9.953e-05,2]
[333336804,1722061754172,-163.066074,9.983e-05,2]
[333336805,1722061754194,-300.0,9.998e-05,2]
[333336806,1722061754217,-254.00088748,9.999e-05,2]
[333336807,1722061754238,-941.81566876,9.999e-05,2]
[333336808,1722061754258,-240.59744191,9.999e-05,2]
[333336809,1722061754277,-600.34409866,9.999e-05,2]
[333336810,1722061754297,-180.43278137,9.999e-05,2]
[333336811,1722061754318,-248.87416602,9.999e-05,2]
[333336812,1722061754338,-259.19116163,9.999e-05,2]
[333336813,1722061754358,-159.32816083,9.999e-05,2]
[333336814,1722061754378,-403.39616838,9.999e-05,2]
[333336816,1722061754398,-155.34151574,9.999e-05,2]
[333336817,1722061754419,-435.790714,9.999e-05,2]
[333336818,1722061754438,-342.88409801,9.999e-05,2]
[333336819,1722061754460,-404.41023413,9.999e-05,2]
[333336820,1722061754482,-154.74467129,9.999e-05,2]
[333336821,1722061754503,-726.90527473,9.999e-05,2]
[333336822,1722061754523,-632.05206367,9.999e-05,2]
[333336823,1722061754723,-196.33497966,9.999e-05,2]
[333336824,1722061754745,-459.2503171,9.999e-05,2]
[333336825,1722061754766,-288.28494131,9.999e-05,2]
[333336826,1722061754788,-160.02872969,9.999e-05,2]
[333336827,1722061754810,-201.30530872,9.999e-05,2]
[333336828,1722061754831,-154.71377951,9.999e-05,2]
[333336829,1722061754852,-154.71377951,9.999e-05,2]
[333336830,1722061754879,-542.61757791,9.999e-05,2]
[333336831,1722061754902,-493.81009187,9.999e-05,2]
[333336832,1722061754923,-157.67039442,9.999e-05,2]
[333336833,1722061754945,-341.67813281,9.999e-05,2]
[333336834,1722061754968,-375.7190477,9.999e-05,2]
[333336835,1722061754989,-154.71377951,0.0001,2]
[333336836,1722061755011,-287.53104938,0.0001,2]
[333336837,1722061755032,-154.69833824,0.0001,2]
[333336838,1722061755054,-450.36914878,0.0001,2]
[333336839,1722061755078,-163.066074,0.00010013,2]
[333336840,1722061755102,-163.066074,0.00010043,2]
[333336841,1722061755124,-19.24373827,0.00010074,2]
[333336842,1722061755174,-143.82233573,0.00010074,2]
[333336843,1722061755198,-163.066074,0.00010104,2]
[333336844,1722061755224,-163.066074,0.00010134,2]
[333336845,1722061755249,-163.066074,0.00010164,2]
[333336846,1722061755273,-163.066074,0.00010194,2]
[333336847,1722061755297,-163.066074,0.00010224,2]
[333336848,1722061755322,-163.066074,0.00010254,2]
[333336849,1722061755346,-163.066074,0.00010285,2]
[333336850,1722061755369,-163.066074,0.00010315,2]
[333336851,1722061755392,-163.066074,0.00010345,2]
[333336852,1722061755413,-174.48227056,0.0001077,2]
[333336853,1722061755434,-168.61574,0.00010959,2]
[333336854,1722061755457,-260.8,0.00010959,2]
[333336855,1722061755481,-22866.8392719,0.0001142,2]
[333336866,1722061761537,1298.46169418,0.00012362,2]
[333336869,1722061764339,-1815.56794294,0.00012362,2]
[333336874,1722061818949,187.36961751,9.999e-05,2]
[333336903,1722061833883,-1072.58812779,0.00012362,2]
[333337491,1722061840096,-20713.38223509,0.00012362,2]
[333337493,1722061840106,-206.7714858,0.00012778,2]
[333337495,1722061840116,-206.7714858,0.00012878,2]
[333337497,1722061840126,-778.41095871,0.000129,2]
[333337499,1722061840136,-4619.04046055,0.00013,2]
[333337501,1722061840145,-306.0,0.00013041,2]
[333337503,1722061840155,-364.1341876,0.00013178,2]
[333337505,1722061840164,-587.8658538,0.00013178,2]
[333337508,1722061840176,-306.0,0.00013178,2]
[333337510,1722061840186,-182.093151,0.00013425,2]
[333337512,1722061840195,-436.32236723,0.00013498,2]
[333337514,1722061840206,-1817.12572833,0.00013499,2]
[333337516,1722061840216,-436.32236722,0.00013523,2]
[333337518,1722061840225,-436.32236722,0.00013548,2]
[333337520,1722061840234,-5305.8633931,0.00013571,2]
[333337522,1722061840244,-436.32236722,0.00013573,2]
[333337524,1722061840253,-20268.9161033,0.00013588,2]
[333337526,1722061840262,-20268.9161033,0.0001359,2]
[333337528,1722061840271,-436.32236722,0.00013598,2]
[333337530,1722061840282,-659.56256019,0.00013598,2]
[333337531,1722061840293,-88888.0,0.00013598,2]
[333337533,1722061840304,-150.112233,0.000136,2]
[333337535,1722061840314,-18535.48363421,0.000136,2]
[333337537,1722061840324,-150.112233,0.000136,2]
[333337539,1722061840335,-152.09328093,0.00013606,2]
[333337542,1722061840346,-620.02956515,0.00013643,2]
[333337544,1722061840356,-260.98572873,0.00013644,2]
[333337546,1722061840367,-37793.80489061,0.00013686,2]
[333337548,1722061840376,-141882.412723,0.00013688,2]
[333337550,1722061840387,-500.0,0.00013698,2]
[333337552,1722061840396,-500.0,0.00013698,2]
[333337554,1722061840406,-401.54,0.00013698,2]
[333337556,1722061840415,-501.82093202,0.00013698,2]
[333337558,1722061840425,-502.47743878,0.00013698,2]
[333337560,1722061840434,-502.13394886,0.00013698,2]
[333337562,1722061840444,-501.47560037,0.00013698,2]
[333337564,1722061840454,-500.0,0.00013698,2]
[333337566,1722061840463,-500.0,0.00013698,2]
[333337568,1722061840472,-452.94481847,0.00013698,2]
[333337570,1722061840482,-500.0,0.00013698,2]
[333337572,1722061840492,-500.0,0.00013698,2]
[333337574,1722061840501,-500.0,0.00013698,2]
[333337576,1722061840511,-500.0,0.00013698,2]
[333337578,1722061840520,-500.0,0.00013698,2]
[333337580,1722061840530,-500.0,0.00013698,2]
[333337582,1722061840539,-500.0,0.00013698,2]
[333337584,1722061840548,-500.0,0.00013698,2]
[333337586,1722061840557,-500.0,0.00013698,2]
[333337588,1722061840567,-500.0,0.00013698,2]
[333337590,1722061840576,-500.0,0.00013698,2]
[333337592,1722061840585,-436.94897927,0.00013698,2]
[333337594,1722061840594,-500.0,0.00013698,2]
[333337596,1722061840604,-500.0,0.00013698,2]
[333337598,1722061840614,-500.0,0.00013698,2]
[333337600,1722061840623,-500.0,0.00013698,2]
[333337602,1722061840632,-500.0,0.00013698,2]
[333337604,1722061840642,-500.0,0.00013698,2]
[333337606,1722061840651,-500.0,0.00013698,2]
[333337608,1722061840661,-500.0,0.00013698,2]
[333337610,1722061840670,-500.0,0.00013698,2]
[333337612,1722061840680,-500.0,0.00013698,2]
[333337614,1722061840690,-469.49319836,0.00013698,2]
[333337616,1722061840699,-500.0,0.00013698,2]
[333337618,1722061840708,-500.0,0.00013698,2]
[333337620,1722061840718,-500.0,0.00013698,2]
[333337622,1722061840729,-500.0,0.00013698,2]
[333337624,1722061840740,-624.92435556,0.00013698,2]
[333337626,1722061840751,-500.0,0.00013698,2]
[333337628,1722061840762,-500.0,0.00013698,2]
[333337630,1722061840772,-500.0,0.00013698,2]
[333337632,1722061840781,-153.183534,0.00013698,2]
[333337634,1722061840791,-927.48,0.00013698,2]
[333337637,1722061840800,-500.0,0.00013698,2]
[333337638,1722061840810,-502.64214137,0.00013698,2]
[333337640,1722061840819,-513.43690189,0.00013698,2]
[333337642,1722061840828,-501.76663855,0.00013698,2]
[333337644,1722061840838,-500.0,0.00013698,2]
[333337646,1722061840847,-505.34279505,0.00013698,2]
[333337648,1722061840857,-500.68249841,0.00013698,2]
[333337650,1722061840866,-513.98845385,0.00013698,2]
[333337651,1722061840875,-783.45,0.00013698,2]
[333337652,1722061840885,-501.38770988,0.00013698,2]
[333337653,1722061840895,-500.0,0.00013698,2]
[333337655,1722061840904,-500.0,0.00013698,2]
[333337657,1722061840913,-500.0,0.00013698,2]
[333337659,1722061840923,-519.71365548,0.00013698,2]
[333337661,1722061840932,-501.53067688,0.00013698,2]
[333337663,1722061840943,-500.0,0.00013698,2]
[333337665,1722061840952,-500.0,0.00013698,2]
[333337667,1722061840961,-506.85,0.00013698,2]
[333337668,1722061840971,-500.0,0.00013698,2]
[333337669,1722061840980,-533.48808814,0.00013698,2]
[333337671,1722061840990,-500.0,0.00013698,2]
[333337674,1722061841000,-500.0,0.00013698,2]
[333337676,1722061841010,-505.35325312,0.00013698,2]
[333337678,1722061841020,-500.0,0.00013698,2]
[333337679,1722061841029,-500.0,0.00013698,2]
[333337680,1722061841038,-500.0,0.00013698,2]
[333337681,1722061841048,-500.0,0.00013698,2]
[333337682,1722061841058,-500.0,0.00013698,2]
[333337683,1722061841067,-500.0,0.00013698,2]
[333337684,1722061841076,-500.0,0.00013698,2]
[333337685,1722061841086,-1048.87,0.00013698,2]
[333337686,1722061841095,-500.0,0.00013698,2]
[333337687,1722061841105,-500.0,0.00013698,2]
[333337688,1722061841114,-500.0,0.00013698,2]
[333337689,1722061841124,-641.36,0.00013698,2]
[333337690,1722061841133,-503.57049156,0.00013698,2]
[333337691,1722061841142,-500.0,0.00013698,2]
[333337692,1722061841151,-500.0,0.00013698,2]
[333337693,1722061841161,-640.32333384,0.00013698,2]
[333337694,1722061841170,-500.0,0.00013698,2]
[333337695,1722061841180,-808.5,0.00013698,2]
[333337696,1722061841190,-500.0,0.00013698,2]
[333337697,1722061841201,-500.0,0.00013698,2]
[333337698,1722061841212,-500.0,0.00013698,2]
[333337699,1722061841224,-500.0,0.00013698,2]
[333337700,1722061841234,-500.0,0.00013698,2]
[333337701,1722061841246,-841.82,0.00013698,2]
[333337702,1722061841257,-841.82,0.00013698,2]
[333337703,1722061841266,-841.82,0.00013698,2]
[333337704,1722061841276,-500.0,0.00013698,2]
[333337705,1722061841285,-841.82,0.00013698,2]
[333337706,1722061841294,-841.82,0.00013698,2]
[333337707,1722061841304,-841.82,0.00013698,2]
[333337708,1722061841315,-841.82,0.00013698,2]
[333337709,1722061841326,-841.82,0.00013698,2]
[333337710,1722061841338,-841.82,0.00013698,2]
[333337711,1722061841348,-841.82,0.00013698,2]
[333337712,1722061841359,-841.82,0.00013698,2]
[333337713,1722061841369,-500.0,0.00013698,2]
[333337714,1722061841380,-590.34477376,0.00013698,2]
[333337715,1722061841391,-500.0,0.00013698,2]
[333337716,1722061841401,-500.0,0.00013698,2]
[333337717,1722061841412,-500.0,0.00013698,2]
[333337718,1722061841424,-500.0,0.00013698,2]
[333337719,1722061841435,-520.77,0.00013698,2]
[333337720,1722061841445,-500.0,0.00013698,2]
[333337721,1722061841455,-502.50496198,0.00013698,2]
[333337722,1722061841466,-500.0,0.00013698,2]
[333337723,1722061841475,-502.98975606,0.00013698,2]
[333337724,1722061841485,-500.0,0.00013698,2]
[333337725,1722061841496,-500.0,0.00013698,2]
[333337726,1722061841507,-500.0,0.00013698,2]
[333337727,1722061841518,-500.0,0.00013698,2]
[333337728,1722061841530,-500.0,0.00013698,2]
[333337729,1722061841540,-500.0,0.00013698,2]
[333337730,1722061841551,-500.0,0.00013698,2]
[333337731,1722061841562,-500.0,0.00013698,2]
[333337732,1722061841572,-500.0,0.00013698,2]
[333337733,1722061841584,-500.0,0.00013698,2]
[333337734,1722061841597,-500.0,0.00013698,2]
[333337735,1722061841608,-500.0,0.00013698,2]
[333337736,1722061841620,-500.0,0.00013698,2]
[333337737,1722061841631,-500.0,0.00013698,2]
[333337738,1722061841642,-500.0,0.00013698,2]
[333337739,1722061841654,-323.24111165,0.00013698,2]
[333337740,1722061841664,-500.0,0.00013698,2]
[333337741,1722061841673,-503.8183989,0.00013698,2]
[333337742,1722061841682,-500.0,0.00013698,2]
[333337743,1722061841692,-500.0,0.00013698,2]
[333337744,1722061841701,-500.0,0.00013698,2]
[333337745,1722061841710,-647.42,0.00013698,2]
[333337746,1722061841720,-500.0,0.00013698,2]
[333337747,1722061841730,-500.0,0.00013698,2]
[333337748,1722061841739,-500.0,0.00013698,2]
[333337749,1722061841748,-151.0,0.00013698,2]
[333337750,1722061841757,-151.0,0.00013698,2]
[333337751,1722061841766,-151.0,0.00013698,2]
[333337752,1722061841776,-151.0,0.00013698,2]
[333337753,1722061841786,-500.0,0.00013698,2]
[333337754,1722061841795,-500.0,0.00013698,2]
[333337755,1722061841804,-500.0,0.00013698,2]
[333337756,1722061841814,-500.0,0.00013698,2]
[333337757,1722061841824,-705.64,0.00013698,2]
[333337758,1722061841833,-500.0,0.00013698,2]
[333337759,1722061841843,-500.0,0.00013698,2]
[333337760,1722061841852,-500.0,0.00013698,2]
[333337761,1722061841862,-500.0,0.00013698,2]
[333337762,1722061841871,-744.12,0.00013698,2]
[333337763,1722061841881,-151.0,0.00013698,2]
[333337764,1722061841890,-153.495179,0.00013698,2]
[333337765,1722061841900,-501.93976237,0.00013698,2]
[333337766,1722061841910,-500.0,0.00013698,2]
[333337767,1722061841919,-500.0,0.00013698,2]
[333337768,1722061841931,-500.0,0.00013698,2]
[333337769,1722061841943,-514.9231913,0.00013698,2]
[333337770,1722061841955,-500.0,0.00013698,2]
[333337771,1722061841965,-500.0,0.00013698,2]
[333337772,1722061841975,-906.72,0.00013698,2]
[333337773,1722061841985,-500.0,0.00013698,2]
[333337774,1722061841995,-500.0,0.00013698,2]
[333337775,1722061842004,-500.0,0.00013698,2]
[333337776,1722061842014,-500.0,0.00013698,2]
[333337777,1722061842026,-500.0,0.00013698,2]
[333337778,1722061842037,-500.0,0.00013698,2]
[333337779,1722061842047,-910.04,0.00013698,2]
[333337780,1722061842056,-500.0,0.00013698,2]
[333337781,1722061842066,-500.0,0.00013698,2]
[333337782,1722061842076,-500.0,0.00013698,2]
[333337783,1722061842085,-500.0,0.00013698,2]
[333337784,1722061842095,-1093.99,0.00013698,2]
[333337785,1722061842105,-500.0,0.00013698,2]
[333337786,1722061842115,-393.76072345,0.00013698,2]
[333337787,1722061842125,-521.79459093,0.00013698,2]
[333337788,1722061842135,-630.61875871,0.00013698,2]
[333337789,1722061842144,-500.0,0.00013698,2]
[333337790,1722061842154,-500.0,0.00013698,2]
[333337791,1722061842163,-1411.7,0.00013698,2]
[333337792,1722061842172,-500.0,0.00013698,2]
[333337793,1722061842182,-562.96310456,0.00013698,2]
[333337794,1722061842194,-500.0,0.00013698,2]
[333337795,1722061842205,-152.9199,0.00013698,2]
[333337796,1722061842215,-500.0,0.00013698,2]
[333337797,1722061842228,-500.0,0.00013698,2]
[333337798,1722061842239,-500.0,0.00013698,2]
[333337799,1722061842249,-500.0,0.00013698,2]
[333337800,1722061842260,-500.0,0.00013698,2]
[333337801,1722061842269,-509.03541115,0.00013698,2]
[333337802,1722061842278,-500.0,0.00013698,2]
[333337803,1722061842287,-500.0,0.00013698,2]
[333337804,1722061842297,-153.74903825,0.00013698,2]
[333337805,1722061842306,-500.0,0.00013698,2]
[333337806,1722061842315,-502.8981417,0.00013698,2]
[333337807,1722061842326,-500.0,0.00013698,2]
[333337808,1722061842335,-500.0,0.00013698,2]
[333337809,1722061842344,-510.23560817,0.00013698,2]
[333337810,1722061842353,-500.0,0.00013698,2]
[333337811,1722061842362,-500.0,0.00013698,2]
[333337812,1722061842371,-500.0,0.00013698,2]
[333337813,1722061842381,-664.71,0.00013698,2]
[333337814,1722061842390,-500.0,0.00013698,2]
[333337815,1722061842399,-500.0,0.00013698,2]
[333337816,1722061842408,-500.0,0.00013698,2]
[333337817,1722061842417,-500.0,0.00013698,2]
[333337819,1722061842427,-500.0,0.00013698,2]
[333337821,1722061842436,-500.0,0.00013698,2]
[333337823,1722061842445,-500.0,0.00013698,2]
[333337825,1722061842454,-500.0,0.00013698,2]
[333337828,1722061842464,-500.0,0.00013698,2]
[333337830,1722061842473,-500.0,0.00013698,2]
[333337833,1722061842483,-500.0,0.00013698,2]
[333337836,1722061842492,-500.0,0.00013698,2]
[333337839,1722061842501,-500.0,0.00013698,2]
[333337841,1722061842510,-669.53,0.00013698,2]
[333337843,1722061842520,-500.0,0.00013698,2]
[333337845,1722061842529,-500.0,0.00013698,2]
[333337847,1722061842539,-500.0,0.00013698,2]
[333337849,1722061842549,-500.0,0.00013698,2]
[333337851,1722061842559,-500.0,0.00013698,2]
[333337853,1722061842568,-500.0,0.00013698,2]
[333337855,1722061842577,-539.28780059,0.00013698,2]
[333337858,1722061842587,-501.29453589,0.00013698,2]
[333337860,1722061842596,-500.0,0.00013698,2]
[333337862,1722061842606,-500.0,0.00013698,2]
[333337863,1722061842615,-500.0,0.00013698,2]
[333337866,1722061842624,-500.0,0.00013698,2]
[333337869,1722061842633,-500.0,0.00013698,2]
[333337872,1722061842643,-500.0,0.00013698,2]
[333337889,1722061842802,-644.9,0.00013698,2]
[333337892,1722061842814,-504.3622422,0.00013698,2]
[333337894,1722061842824,-500.0,0.00013698,2]
[333337896,1722061842837,-500.0,0.00013698,2]
[333337898,1722061842846,-500.0,0.00013698,2]
[333337900,1722061842856,-500.0,0.00013698,2]
[333337902,1722061842866,-503.58566811,0.00013698,2]
[333337904,1722061842875,-1201.57,0.00013698,2]
[333337906,1722061842884,-500.0,0.00013698,2]
[333337908,1722061842893,-500.0,0.00013698,2]
[333337910,1722061842901,-248.587252,0.00013698,2]
[333337912,1722061842911,-248.587252,0.00013698,2]
[333337914,1722061842921,-248.587252,0.00013698,2]
[333337916,1722061842931,-248.587252,0.00013698,2]
[333337918,1722061842944,-500.0,0.00013698,2]
[333337920,1722061842954,-788.14,0.00013698,2]
[333337922,1722061842965,-500.0,0.00013698,2]
[333337924,1722061842974,-500.0,0.00013698,2]
[333337926,1722061842984,-248.587252,0.00013698,2]
[333337928,1722061842995,-500.0,0.00013698,2]
[333337931,1722061843006,-248.587252,0.00013698,2]
[333337933,1722061843018,-248.587252,0.00013698,2]
[333337935,1722061843028,-248.587252,0.00013698,2]
[333337937,1722061843039,-500.0,0.00013698,2]
[333337939,1722061843051,-500.0,0.00013698,2]
[333337942,1722061843062,-500.0,0.00013698,2]
[333337944,1722061843072,-503.20880811,0.00013698,2]
[333337946,1722061843081,-500.0,0.00013698,2]
[333337948,1722061843091,-500.0,0.00013698,2]
[333337950,1722061843101,-500.0,0.00013698,2]
[333337952,1722061843110,-1458.64,0.00013698,2]
[333337954,1722061843120,-151.0,0.00013698,2]
[333337956,1722061843129,-151.0,0.00013698,2]
[333337958,1722061843138,-151.0,0.00013698,2]
[333337960,1722061843148,-151.0,0.00013698,2]
[333337962,1722061843157,-2950.47,0.00013698,2]
[333337964,1722061843167,-500.0,0.00013698,2]
[333337966,1722061843176,-151.0,0.00013698,2]
[333337968,1722061843186,-151.0,0.00013698,2]
[333337970,1722061843195,-151.0,0.00013698,2]
[333337972,1722061843205,-222.65746,0.00013698,2]
[333337974,1722061843215,-500.0,0.00013698,2]
[333337976,1722061843224,-500.0,0.00013698,2]
[333337978,1722061843234,-502.26380304,0.00013698,2]
[333337980,1722061843244,-500.0,0.00013698,2]
[333337983,1722061843253,-683.5,0.00013698,2]
[333337985,1722061843264,-500.0,0.00013698,2]
[333337987,1722061843274,-500.0,0.00013698,2]
[333337989,1722061843284,-500.0,0.00013698,2]
[333337990,1722061843295,-1960.52,0.00013698,2]
[333337991,1722061843306,-500.0,0.00013698,2]
[333337992,1722061843316,-2424.87,0.00013698,2]
[333337993,1722061843327,-500.0,0.00013698,2]
[333337994,1722061843338,-500.0,0.00013698,2]
[333337995,1722061843350,-2771.47,0.00013698,2]
[333337996,1722061843360,-2771.47,0.00013698,2]
[333337997,1722061843371,-2771.47,0.00013698,2]
[333337998,1722061843380,-2771.47,0.00013698,2]
[333337999,1722061843392,-2771.47,0.00013698,2]
[333338000,1722061843402,-2771.47,0.00013698,2]
[333338001,1722061843413,-2771.47,0.00013698,2]
[333338002,1722061843426,-2771.47,0.00013698,2]
[333338003,1722061843436,-2771.47,0.00013698,2]
[333338004,1722061843446,-2771.47,0.00013698,2]
[333338005,1722061843455,-2771.47,0.00013698,2]
[333338006,1722061843466,-2771.47,0.00013698,2]
[333338007,1722061843475,-2771.47,0.00013698,2]
[333338008,1722061843485,-2771.47,0.00013698,2]
[333338009,1722061843494,-2771.47,0.00013698,2]
[333338010,1722061843503,-151.0,0.00013698,2]
[333338011,1722061843512,-2771.47,0.00013698,2]
[333338012,1722061843521,-151.0,0.00013698,2]
[333338013,1722061843531,-307.51833822,0.00013698,2]
[333338014,1722061843540,-168.416161,0.00013698,2]
[333338015,1722061843549,-506.81313557,0.00013698,2]
[333338016,1722061843559,-500.0,0.00013698,2]
[333338017,1722061843568,-500.0,0.00013698,2]
[333338018,1722061843579,-170.030515,0.00013698,2]
[333338019,1722061843590,-170.030515,0.00013698,2]
[333338020,1722061843601,-526.43,0.00013698,2]
[333338021,1722061843613,-170.030515,0.00013698,2]
[333338022,1722061843624,-170.030515,0.00013698,2]
[333338023,1722061843635,-500.0,0.00013698,2]
[333338024,1722061843645,-500.0,0.00013698,2]
[333338025,1722061843655,-502.11820702,0.00013698,2]
[333338026,1722061843664,-170.030515,0.00013698,2]
[333338028,1722061843673,-170.030515,0.00013698,2]
[333338030,1722061843683,-170.030515,0.00013698,2]
[333338032,1722061843692,-500.0,0.00013698,2]
[333338034,1722061843702,-170.030515,0.00013698,2]
[333338036,1722061843711,-500.0,0.00013698,2]
[333338038,1722061843720,-503.2947434,0.00013698,2]
[333338039,1722061843729,-151.639639,0.00013698,2]
[333338041,1722061843739,-500.0,0.00013698,2]
[333338043,1722061843748,-500.0,0.00013698,2]
[333338045,1722061843757,-151.0,0.00013698,2]
[333338047,1722061843767,-1184.39,0.00013698,2]
[333338049,1722061843777,-1168.4,0.00013698,2]
[333338051,1722061843786,-151.0,0.00013698,2]
[333338053,1722061843796,-151.0,0.00013698,2]
[333338055,1722061843806,-151.0,0.00013698,2]
[333338057,1722061843816,-500.0,0.00013698,2]
[333338059,1722061843828,-151.0,0.00013698,2]
[333338062,1722061843840,-243.985484,0.00013698,2]
[333338063,1722061843850,-151.0,0.00013698,2]
[333338065,1722061843860,-500.0,0.00013698,2]
[333338067,1722061843869,-500.0,0.00013698,2]
[333338069,1722061843878,-500.0,0.00013698,2]
[333338071,1722061843889,-1613.79,0.00013698,2]
[333338073,1722061843899,-501.69428418,0.00013698,2]
[333338075,1722061843910,-311.68968242,0.00013698,2]
[333338077,1722061843920,-1322.56,0.00013698,2]
[333338079,1722061843930,-500.0,0.00013698,2]
[333338081,1722061843940,-500.0,0.00013698,2]
[333338083,1722061843952,-500.0,0.00013698,2]
[333338085,1722061843962,-500.0,0.00013698,2]
[333338087,1722061843973,-500.0,0.00013698,2]
[333338089,1722061843982,-500.0,0.00013698,2]
[333338091,1722061843993,-500.0,0.00013698,2]
[333338094,1722061844003,-500.0,0.00013698,2]
[333338095,1722061844013,-500.0,0.00013698,2]
[333338097,1722061844022,-500.0,0.00013698,2]
[333338099,1722061844031,-500.0,0.00013698,2]
[333338101,1722061844042,-382.96,0.00013698,2]
[333338103,1722061844052,-5036.43,0.00013698,2]
[333338105,1722061844061,-313.65615021,0.00013698,2]
[333338107,1722061844070,-500.0,0.00013698,2]
[333338109,1722061844079,-500.0,0.00013698,2]
[333338111,1722061844089,-846.56,0.00013698,2]
[333338113,1722061844098,-545.27,0.00013698,2]
[333338115,1722061844108,-500.0,0.00013698,2]
[333338117,1722061844118,-500.0,0.00013698,2]
[333338119,1722061844128,-500.0,0.00013698,2]
[333338121,1722061844138,-500.0,0.00013698,2]
[333338123,1722061844150,-2281.35,0.00013698,2]
[333338125,1722061844160,-500.0,0.00013698,2]
[333338127,1722061844170,-151.0,0.00013698,2]
[333338129,1722061844179,-151.0,0.00013698,2]
[333338132,1722061844189,-151.0,0.00013698,2]
[333338133,1722061844199,-500.0,0.00013698,2]
[333338135,1722061844209,-151.0,0.00013698,2]
[333338137,1722061844218,-151.0,0.00013698,2]